bitfinex-derivatives/quotes_SOLF0:USTF0_20251201
["timestamp","ask_amount","ask_price","bid_price","bid_amount"]
[1764560326806,10.5031,126.7,126.69,2.62563427]
[1764560329803,7.1031,126.7,126.69,5.34563427]
[1764560330000,0.05294398,126.71,126.7,2.72]
[1764560330206,3.41,126.76,126.7,2.72]
[1764560330501,3.41,126.76,126.74,3.427e-05]
[1764560330807,3.41,126.76,126.7,2.72]
[1764560331008,3.41,126.76,126.73,3.427e-05]
[1764560331203,16.82103427,126.8,126.73,3.427e-05]
[1764560331204,0.05627831,126.74,126.73,3.427e-05]
[1764560331409,10.56123349,126.75,126.73,3.427e-05]
[1764560331610,3.41,126.74,126.73,3.427e-05]
[1764560332013,10.5114,126.73,126.72,0.05465081]
[1764560333211,7.1036,126.7,126.67,2.72]
[1764560333410,3.41,126.72,126.67,2.72]
[1764560333614,3.41,126.72,126.64,4.09353963]
[1764560334019,0.05647341,126.69,126.67,0.04964729]
[1764560334218,7.1046,126.68,126.67,0.04964729]
[1764560336911,10.5146,126.68,126.67,0.04964729]
[1764560337516,10.5159,126.65,126.63,13.3]
[1764560338222,7.1059,126.65,126.63,13.3]
[1764560338516,7.15902503,126.65,126.63,13.36072978]
[1764560340520,7.15902503,126.65,126.63,16.13072978]
[1764560341121,0.05312503,126.65,126.63,16.13072978]
[1764560341321,0.05312503,126.65,126.64,2.77]
[1764560341523,0.05312503,126.65,126.63,16.13072978]
[1764560341720,10.56922503,126.65,126.63,13.36072978]
[1764560342026,3.41,126.64,126.63,13.36072978]
[1764560342219,7.15922503,126.65,126.63,13.36072978]
[1764560342425,10.56922503,126.65,126.63,13.36072978]
[1764560343619,7.15922503,126.65,126.63,16.13072978]
[1764560344024,0.05312503,126.65,126.63,16.13072978]
[1764560344825,0.05312503,126.65,126.64,2.77]
[1764560345332,7.1038,126.69,126.65,2.77]
[1764560345632,3.41,126.68,126.63,16.07]
[1764560346126,7.1058,126.66,126.63,16.07]
[1764560346330,3.46434709,126.66,126.63,13.35489815]
[1764560346523,3.46434709,126.66,126.63,0.05489815]
[1764560346924,3.46434709,126.66,126.58,1.37413623]
[1764560346925,3.41,126.64,126.58,1.37413623]
[1764560347729,10.5184,126.61,126.58,1.37413623]
[1764560347926,10.5184,126.61,126.59,2.82]
[1764560347927,7.16196203,126.61,126.59,2.82]
[1764560348930,0.05356203,126.61,126.59,2.82]
[1764560349328,3.46356203,126.61,126.58,1.42590533]
[1764560349525,3.41,126.6,126.58,0.0517691]
[1764560349726,3.41,126.6,126.58,0.0017691]
[1764560349924,3.41,126.6,126.51,2.82]
[1764560349925,3.41,126.59,126.53,4.24473335]
[1764560350132,3.41,126.62,126.54,14.3240058]
[1764560350333,3.41,126.62,126.55,2.87]
[1764560350533,10.5177,126.62,126.55,2.87]
[1764560350940,10.5177,126.62,126.58,2.87]
[1764560350941,0.0573297,126.6,126.58,2.87]
[1764560351332,0.0573297,126.6,126.57,2.92071132]
[1764560352237,7.1661297,126.6,126.57,2.92071132]
[1764560352438,0.0573297,126.6,126.57,2.92071132]
[1764560353428,3.41,126.66,126.59,2.87]
[1764560354037,7.1061,126.65,126.59,2.87]
[1764560354333,0.05857483,126.63,126.61,0.05834654]
[1764560354530,0.05857483,126.63,126.61,2.92834654]
[1764560354928,3.46857483,126.63,126.61,0.05834654]
[1764560355134,10.5185,126.61,126.55,14.3240058]
[1764560355536,3.41,126.61,126.53,1.37473335]
[1764560355730,7.1103,126.58,126.53,1.37473335]
[1764560355947,3.41,126.57,126.53,4.30473335]
[1764560356141,0.05275589,126.56,126.54,0.05544184]
[1764560357440,0.05275589,126.56,126.54,2.98544184]
[1764560358536,3.46275589,126.56,126.54,0.05544184]
[1764560359134,3.46275589,126.56,126.49,4.75653141]
[1764560359135,5.04275589,126.56,126.49,4.75653141]
[1764560359448,3.41,126.55,126.49,9.1217537]
[1764560359749,3.25,126.52,126.49,4.75653141]
[1764560360248,3.25,126.5,126.45,27.26]
[1764560360744,110.6161,126.56,126.45,27.26]
[1764560360745,3.25,126.56,126.47,11.4540058]
[1764560360938,3.25,126.56,126.48,3.15]
[1764560361138,3.25,126.56,126.45,27.26]
[1764560361139,1.9750471,126.55,126.46,11.4540058]
[1764560361347,5.93011421,126.58,126.5,3.15]
[1764560361348,0.05414909,126.52,126.5,3.15]
[1764560361539,0.0535604,126.52,126.5,3.20267643]
[1764560361738,3.25,126.58,126.51,3.15]
[1764560362152,7.11,126.58,126.53,3.15]
[1764560362649,0.05710057,126.57,126.54,3.20437891]
[1764560362847,4.71137413,126.58,126.54,3.20437891]
[1764560363737,0.05041778,126.57,126.54,3.20437891]
[1764560364344,3.30041778,126.57,126.54,0.05437891]
[1764560365349,0.05041778,126.57,126.54,3.43437891]
[1764560367351,3.17041778,126.57,126.54,0.05437891]
[1764560367856,0.05041778,126.57,126.56,3.38]
[1764560368047,11.07356312,126.64,126.56,3.38]
[1764560368048,3.12,126.64,126.56,3.38]
[1764560369150,0.05030839,126.61,126.59,3.43046135]
[1764560369351,0.05030839,126.61,126.59,0.05046135]
[1764560369746,3.17030839,126.61,126.59,0.05046135]
[1764560369947,0.05030839,126.61,126.59,0.05046135]
[1764560370150,3.12,126.6,126.59,0.05046135]
[1764560370348,3.12,126.6,126.55,14.8340058]
[1764560370546,3.12,126.6,126.47,3.38]
[1764560370744,7.1113,126.56,126.49,3.38]
[1764560371243,0.05030531,126.54,126.51,0.05984339]
[1764560371449,0.05030531,126.54,126.52,3.38]
[1764560372946,3.12,126.62,126.53,3.38]
[1764560373453,3.12,126.62,126.54,14.8340058]
[1764560373950,0.05139573,126.59,126.57,0.05066609]
[1764560374153,0.05139573,126.59,126.57,3.43066609]
[1764560375350,3.12,126.65,126.58,3.38]
[1764560375948,3.12,126.68,126.59,3.38]
[1764560376356,0.05147095,126.65,126.62,0.05645453]
[1764560378954,7.15757095,126.65,126.62,0.05645453]
[1764560379453,0.05147095,126.65,126.62,0.05645453]
[1764560382358,0.05147095,126.65,126.62,3.43645453]
[1764560385968,7.1041,126.69,126.64,3.38]
[1764560386154,3.12,126.71,126.64,3.38]
[1764560386358,10.2227,126.71,126.64,3.38]
[1764560386870,3.12,126.7,126.64,10.4862]
[1764560387064,3.17498096,126.69,126.66,0.05792334]
[1764560387370,3.17498096,126.69,126.66,0.05050562]
[1764560387569,0.05498096,126.69,126.66,3.43050562]
[1764560388072,0.05498096,126.69,126.67,3.38]
[1764560391673,3.19,126.76,126.68,3.39]
[1764560392170,10.2906,126.75,126.68,10.4941]
[1764560392369,3.19,126.74,126.68,3.39]
[1764560392769,0.05079666,126.72,126.7,3.44439117]
[1764560393571,3.24079666,126.72,126.7,0.05439117]
[1764560397671,3.19,126.71,126.7,0.05439117]
[1764560397870,0.05079666,126.72,126.7,0.05439117]
[1764560398377,3.24079666,126.72,126.7,0.05439117]
[1764560400674,7.15279666,126.72,126.7,0.05439117]
[1764560400978,0.05079666,126.72,126.7,0.05439117]
[1764560401183,0.05079666,126.72,126.7,3.44439117]
[1764560401478,3.19,126.78,126.71,3.39]
[1764560401680,3.19,126.81,126.74,3.39]
[1764560402378,10.2875,126.81,126.74,10.4904]
[1764560402579,0.05284853,126.79,126.76,3.44624087]
[1764560403483,3.19,126.86,126.77,3.39]
[1764560404278,3.19,126.82,126.8,0.0576048]
[1764560404584,3.24736178,126.82,126.8,0.05862722]
[1764560405082,3.19,126.89,126.81,3.39]
[1764560405686,3.19,126.89,126.81,10.4868]
[1764560405987,0.05084455,126.86,126.84,0.05613005]
[1764560406482,3.24084455,126.86,126.84,0.05613005]
[1764560407185,0.05084455,126.86,126.84,3.44613005]
[1764560408084,0.05084455,126.86,126.84,0.05613005]
[1764560408681,3.24084455,126.86,126.84,0.05613005]
[1764560409173,3.24084455,126.86,126.78,23.27]
[1764560409174,3.19,126.84,126.78,23.27]
[1764560410182,0.05522193,126.82,126.8,0.05774554]
[1764560410581,3.24522193,126.82,126.8,0.05774554]
[1764560415097,0.05522193,126.82,126.8,3.44774554]
[1764560417299,0.05522193,126.82,126.8,0.05774554]
[1764560417502,3.24522193,126.82,126.8,0.05774554]
[1764560418787,0.05522193,126.82,126.8,0.05774554]
[1764560418993,3.19,126.91,126.82,3.39]
[1764560419192,3.19,126.91,126.87,3.39]
[1764560419394,3.19,126.91,126.86,10.67816163]
[1764560419601,3.19,126.91,126.87,3.39]
[1764560419793,3.4,126.97,126.88,7.28816163]
[1764560419994,3.4,126.93,126.91,0.05485106]
[1764560424498,10.4906,126.93,126.91,0.05485106]
[1764560424907,3.13,126.92,126.91,0.05485106]
[1764560426200,3.13,126.91,126.81,7.28816163]
[1764560426402,3.13,126.91,126.8,10.59816163]
[1764560426603,3.13,126.91,126.82,10.59816163]
[1764560426805,10.2231,126.88,126.83,3.31]
[1764560427206,0.05016896,126.87,126.84,3.36115451]
[1764560428098,0.05016896,126.87,126.86,3.31]
[1764560428411,0.05016896,126.87,126.84,3.36115451]
[1764560429099,0.05016896,126.87,126.84,10.64931614]
[1764560429302,0.05016896,126.87,126.85,3.31]
[1764560429904,10.2215,126.91,126.86,3.31]
[1764560430105,3.13,126.91,126.86,3.31]
[1764560430809,3.13,126.9,126.83,3.31]
[1764560431011,3.1883096,126.88,126.85,0.0605817]
[1764560431399,10.224,126.87,126.85,0.0605817]
[1764560432116,0.0583096,126.88,126.85,0.0605817]
[1764560432609,0.0583096,126.88,126.85,3.3705817]
[1764560432813,0.0583096,126.88,126.86,3.31]
[1764560433005,3.13,126.93,126.86,3.31]
[1764560433204,7.091,126.92,126.86,3.31]
[1764560433713,10.2215,126.91,126.86,3.31]
[1764560433914,0.06070824,126.9,126.87,0.05597144]
[1764560434213,3.19070824,126.9,126.87,0.05597144]
[1764560434906,0.06070824,126.9,126.87,0.05597144]
[1764560435106,0.06070824,126.9,126.87,3.36597144]
[1764560435806,6.05497905,126.92,126.87,3.36597144]
[1764560436014,3.13,126.93,126.89,3.31]
[1764560436412,3.13,126.92,126.88,7.28816163]
[1764560436914,3.13,126.91,126.89,0.05942899]
[1764560437114,3.13,126.91,126.89,0.05138527]
[1764560438512,10.2216,126.91,126.89,0.05138527]
[1764560438712,3.13,126.9,126.89,0.05138527]
[1764560439916,30.99816163,126.96,126.89,0.05138527]
[1764560439917,3.13,126.92,126.89,0.05138527]
[1764560440113,7.17327723,126.97,126.89,0.05138527]
[1764560440114,3.13,126.98,126.91,3.31]
[1764560440311,3.13,126.98,126.93,0.05987627]
[1764560440812,7.17327723,127.01,126.93,0.05987627]
[1764560440813,3.13,126.95,126.93,0.05987627]
[1764560441014,3.13,126.95,126.93,0.05295972]
[1764560441406,3.13,126.93,126.85,10.59816163]
[1764560442416,3.18787841,126.9,126.88,0.05972767]
[1764560442620,3.18049827,126.9,126.88,0.05286352]
[1764560443025,0.05049827,126.9,126.88,0.05286352]
[1764560443426,0.05049827,126.9,126.88,3.36286352]
[1764560443828,0.05049827,126.9,126.88,0.05286352]
[1764560446229,0.05049827,126.9,126.88,3.36286352]
[1764560447727,0.05049827,126.9,126.89,3.31]
[1764560448030,0.05049827,126.9,126.88,10.65102515]
[1764560448434,0.05049827,126.9,126.89,3.31]
[1764560449131,0.05049827,126.9,126.88,7.34102515]
[1764560449329,0.05049827,126.9,126.88,10.65102515]
[1764560449525,0.05049827,126.9,126.89,3.31]
[1764560450937,0.05049827,126.9,126.88,0.05286352]
[1764560452433,0.05049827,126.9,126.88,3.42286352]
[1764560453031,0.05049827,126.9,126.88,10.51586352]
[1764560453333,0.05049827,126.9,126.89,10.65816163]
[1764560455042,3.28,126.96,126.9,10.4616]
[1764560455431,10.3687,126.96,126.91,3.37]
[1764560455739,10.3687,126.96,126.92,3.37]
[1764560455740,3.28,126.96,126.92,3.37]
[1764560455927,10.3693,126.95,126.93,0.05578825]
[1764560456130,3.28,126.94,126.93,0.05929942]
[1764560457845,10.3685,126.97,126.93,0.05929942]
[1764560458033,3.28,126.96,126.94,0.05064635]
[1764560458733,10.3686,126.96,126.94,0.05064635]
[1764560458935,3.28,126.95,126.94,0.05064635]
[1764560460735,3.28,126.93,126.89,10.65816163]
[1764560460935,3.28,126.93,126.9,3.37]
[1764560461130,3.28,126.96,126.9,3.37]
[1764560461443,10.369,126.96,126.9,3.37]
[1764560461746,0.05281336,126.94,126.92,0.05338599]
[1764560462247,3.33281336,126.94,126.92,0.05338599]
[1764560463344,10.42271336,126.94,126.92,0.05338599]
[1764560463644,3.28,126.93,126.92,0.05338599]
[1764560464343,3.28,126.93,126.87,17.75126163]
[1764560464741,3.28,126.91,126.87,7.0931]
[1764560465046,3.28,126.91,126.85,10.4644]
[1764560465548,0.05409798,126.89,126.87,3.4302488]
[1764560466640,0.00409798,126.89,126.88,3.37]
[1764560466844,10.3699,126.94,126.88,3.37]
[1764560467039,3.28,126.93,126.88,3.37]
[1764560467942,3.33795006,126.92,126.89,0.05622823]
[1764560468139,3.33795006,126.92,126.89,0.05832763]
[1764560469449,7.0914,126.91,126.89,0.05832763]
[1764560469745,0.05795006,126.92,126.9,3.37]
[1764560470546,3.28,126.98,126.91,3.37]
[1764560470852,3.28,126.98,126.93,3.37]
[1764560471448,10.3676,126.98,126.93,3.37]
[1764560471649,10.3676,126.98,126.94,3.42187098]
[1764560472240,9.0550242,127.0,126.94,3.42187098]
[1764560472443,3.28,127.04,126.96,3.37]
[1764560472745,3.28,127.02,126.99,0.05517987]
[1764560472948,3.28,127.02,126.99,0.05757846]
[1764560474648,7.21921852,127.08,126.99,3.42757846]
[1764560474850,3.28,127.06,127.02,0.05056219]
[1764560475049,3.28,127.06,127.03,0.05132225]
[1764560475250,7.21921852,127.09,127.03,3.42132225]
[1764560475450,9.54458475,127.11,127.04,3.37]
[1764560475451,3.28,127.11,127.04,3.37]
[1764560475948,3.28,127.11,127.06,0.05149633]
[1764560476448,3.28,127.11,127.06,3.42149633]
[1764560476644,3.28,127.11,127.06,0.05149633]
[1764560477443,3.28,127.11,127.06,3.42149633]
[1764560479650,3.28,127.11,127.06,0.05149633]
[1764560480248,3.26,127.13,127.06,3.18149633]
[1764560480454,3.26,127.13,127.08,0.05452118]
[1764560480946,7.81343073,127.17,127.08,0.05452118]
[1764560480947,3.26,127.11,127.08,0.05452118]
[1764560481147,3.26,127.11,127.08,0.05259731]
[1764560482649,3.26,127.09,127.08,0.05259731]
[1764560482853,3.26,127.09,127.07,0.06007004]
[1764560483353,3.26,127.09,127.01,49.84469362]
[1764560483656,7.0824,127.08,127.01,26.50314296]
[1764560483851,3.26,127.07,127.01,26.50314296]
[1764560484449,3.31059089,127.05,127.03,0.05723403]
[1764560484856,0.05059089,127.05,127.03,0.05723403]
[1764560485055,0.05059089,127.05,127.03,3.36723403]
[1764560486055,0.05059089,127.05,127.03,0.05723403]
[1764560486453,3.12059089,127.05,127.03,0.05723403]
[1764560489855,0.05059089,127.05,127.03,3.36723403]
[1764560492859,0.05059089,127.05,127.03,0.05723403]
[1764560493665,0.05059089,127.05,127.03,3.36723403]
[1764560494455,0.05059089,127.05,127.03,10.45183403]
[1764560494856,0.05059089,127.05,127.03,3.36723403]
[1764560495962,0.05059089,127.05,127.03,0.05723403]
[1764560496161,3.12059089,127.05,127.03,0.05723403]
[1764560498168,3.07,127.04,127.03,0.05723403]
[1764560498570,10.1547,127.03,126.97,14.72314296]
[1764560498966,3.07,127.03,126.94,11.41314296]
[1764560499169,3.07,127.03,126.95,3.31]
[1764560499370,3.07,126.99,126.95,3.31]
[1764560499666,3.12227851,126.98,126.96,0.05534823]
[1764560499870,3.12433158,126.98,126.96,0.0566421]
[1764560502572,0.05433158,126.98,126.96,3.3666421]
[1764560504169,0.05433158,126.98,126.96,0.0566421]
[1764560504367,3.12433158,126.98,126.96,0.0566421]
[1764560505277,0.05433158,126.98,126.96,3.3666421]
[1764560505975,3.12433158,126.98,126.96,0.0566421]
[1764560507370,10.21213158,126.98,126.96,0.0566421]
[1764560507576,3.07,126.97,126.96,0.0566421]
[1764560508073,7.0885,126.97,126.93,27.22]
[1764560508276,3.07,126.96,126.93,27.22]
[1764560509280,3.07,126.96,126.93,27.28041083]
[1764560510066,3.14,126.96,126.93,30.43041083]
[1764560510571,3.14,126.96,126.93,27.28041083]
[1764560513582,10.2287,126.96,126.93,27.28041083]
[1764560514172,10.2287,126.96,126.93,30.43041083]
[1764560514874,0.05433158,126.98,126.94,3.15]
[1764560515068,0.05433158,126.98,126.93,27.28041083]
[1764560515069,0.05433158,126.98,126.96,3.15]
[1764560515270,0.05433158,126.98,126.96,3.20400018]
[1764560516878,3.14,127.03,126.98,3.15]
[1764560517481,3.14,127.03,126.95,3.15]
[1764560518182,3.19656347,127.0,126.98,0.05971715]
[1764560518484,3.1916148,127.0,126.98,0.05168651]
[1764560518875,0.0516148,127.0,126.98,3.20168651]
[1764560520185,0.0516148,127.0,126.99,3.15]
[1764560522083,0.0516148,127.0,126.98,0.05168651]
[1764560522599,0.0516148,127.0,126.98,3.20168651]
[1764560523084,3.1916148,127.0,126.98,0.05168651]
[1764560523887,3.14,126.99,126.98,0.05168651]
[1764560524683,4.72,126.99,126.98,0.05168651]
[1764560524886,3.14,126.97,126.93,30.37]
[1764560525389,3.14,126.97,126.94,3.15]
[1764560525890,3.19423344,126.97,126.94,3.20850202]
[1764560527281,3.19423344,126.97,126.94,0.05850202]
[1764560528593,10.28243344,126.97,126.94,0.05850202]
[1764560529289,0.05423344,126.97,126.94,10.29810202]
[1764560529487,0.05423344,126.97,126.95,3.15]
[1764560530393,0.05423344,126.97,126.96,10.42236956]
[1764560531184,0.05423344,126.97,126.96,7.27236956]
[1764560531592,0.05423344,126.97,126.96,10.42236956]
[1764560532395,0.05423344,126.97,126.96,5.76858837]
[1764560533592,0.05423344,126.97,126.96,2.61858837]
[1764560534093,0.05423344,126.97,126.96,5.76858837]
[1764560535691,3.19423344,126.97,126.96,2.61858837]
[1764560536394,7.0886,126.96,126.94,2.67709039]
[1764560536588,10.2286,126.96,126.94,2.67709039]
[1764560538393,10.2286,126.96,126.94,0.05850202]
[1764560539096,3.14,126.95,126.94,0.05850202]
[1764560539295,3.14,126.93,126.89,3.15]
[1764560539801,10.1809,126.92,126.88,34.57477763]
[1764560540002,10.1809,126.92,126.89,3.32]
[1764560540299,10.23461252,126.92,126.89,3.37321907]
[1764560540901,3.14371252,126.92,126.89,3.37321907]
[1764560541787,0.05371252,126.92,126.89,3.37321907]
[1764560544899,7.09,126.94,126.89,3.37321907]
[1764560545103,7.09,126.94,126.92,3.32]
[1764560545303,3.09,126.96,126.92,3.32]
[1764560545799,0.05018308,126.95,126.93,0.05554222]
[1764560546008,3.14018308,126.95,126.93,0.05554222]
[1764560547309,10.22958308,126.95,126.93,0.05554222]
[1764560551200,3.3,126.94,126.93,0.05554222]
[1764560551805,10.43958308,126.95,126.93,0.05554222]
[1764560552203,7.13958308,126.95,126.93,3.38554222]
[1764560552406,3.3,126.97,126.95,3.33]
[1764560552407,7.0885,126.97,126.95,3.33]
[1764560552609,3.3,127.0,126.95,3.33]
[1764560552812,3.3,127.0,126.97,7.27710551]
[1764560553008,3.3,127.0,126.97,10.60710551]
[1764560553405,3.35778433,127.0,126.97,10.6596898]
[1764560553712,10.387,126.99,126.97,7.3296898]
[1764560554809,7.087,126.99,126.97,7.3296898]
[1764560555012,7.087,126.99,126.97,10.6596898]
[1764560555211,10.387,126.99,126.97,7.3296898]
[1764560556112,3.3,126.98,126.97,0.05258429]
[1764560556307,3.3,126.97,126.94,10.60710551]
[1764560556914,10.3884,126.97,126.94,10.60710551]
[1764560557416,10.44862581,126.97,126.94,10.66040653]
[1764560557811,10.3891,126.96,126.94,7.33040653]
[1764560558519,7.0891,126.96,126.94,10.66040653]
[1764560559920,7.0873,126.99,126.95,3.33]
[1764560560117,3.3,127.03,126.98,3.33]
[1764560560417,3.3,127.02,126.98,3.33]
[1764560560622,3.3,127.02,127.0,2.61713922]
[1764560561024,3.36078755,127.02,127.0,2.67076901]
[1764560561428,10.3858,127.01,127.0,2.67076901]
[1764560562327,10.3858,127.01,127.0,0.05362979]
[1764560565530,10.3858,127.01,126.96,7.27145668]
[1764560565531,3.3,126.97,126.93,10.60145668]
[1764560566231,7.0894,126.95,126.93,10.60145668]
[1764560566428,7.0894,126.95,126.93,7.27145668]
[1764560566630,7.14857202,126.95,126.93,7.32514565]
[1764560568339,7.14857202,126.95,126.93,10.65514565]
[1764560570735,0.05917202,126.95,126.93,10.65514565]
[1764560571044,3.31,127.0,126.94,3.07]
[1764560571638,3.31,127.0,126.96,10.34145668]
[1764560571839,3.31,127.0,126.97,3.07]
[1764560572140,0.05695645,127.0,126.97,3.12911908]
[1764560572442,0.05695645,127.0,126.99,10.34145668]
[1764560573043,0.05695645,127.0,126.99,7.27145668]
[1764560573942,0.05695645,127.0,126.97,3.12911908]
[1764560574337,3.31,127.06,126.99,10.34145668]
[1764560574542,7.27125724,127.08,126.99,10.34145668]
[1764560574543,3.31,127.04,126.99,10.34145668]
[1764560574741,3.31,127.03,126.99,10.34145668]
[1764560575443,0.05668391,127.02,127.0,0.0550398]
[1764560575644,3.31,127.01,127.0,0.0550398]
[1764560581442,10.45208391,127.02,127.0,0.0550398]
[1764560582741,3.31,127.01,127.0,0.0550398]
[1764560583243,7.14208391,127.02,127.0,3.1250398]
[1764560583740,3.31,127.01,127.0,0.0550398]
[1764560585447,10.45208391,127.02,127.0,0.0550398]
[1764560586450,10.45208391,127.02,127.0,2.67252008]
[1764560586750,3.31,127.01,127.0,0.0550398]
[1764560590748,7.14208391,127.02,127.0,0.0550398]
[1764560590749,0.05668391,127.02,127.0,3.1250398]
[1764560590950,0.05668391,127.02,127.0,5.74252008]
[1764560591141,0.05668391,127.02,127.0,2.67252008]
[1764560591345,3.31,127.07,127.01,3.07]
[1764560591548,3.31,127.07,127.04,3.07]
[1764560591859,10.3938,127.05,127.01,3.07]
[1764560592047,10.3938,127.05,127.03,2.61748028]
[1764560592349,10.3938,127.05,127.02,3.07]
[1764560592540,3.31,127.07,127.03,3.12698219]
[1764560592743,3.31,127.07,127.04,0.05053184]
[1764560593250,3.31,127.05,127.04,0.05053184]
[1764560596463,7.0847,127.03,126.98,3.07]
[1764560596761,3.31,127.03,126.98,3.07]
[1764560597164,10.3954,127.02,126.98,3.07]
[1764560597456,0.05123235,127.01,126.99,0.05340341]
[1764560597761,0.05123235,127.01,127.0,3.07]
[1764560600855,5.90451179,127.07,127.01,3.34]
[1764560600856,3.38,127.07,127.01,3.34]
[1764560601364,7.0839,127.05,127.01,3.34]
[1764560601860,7.0839,127.05,127.03,3.34]
[1764560603059,3.38,127.03,127.02,0.05010462]
[1764560603252,3.38,127.03,127.01,0.05813103]
[1764560603760,10.4644,127.04,127.01,3.39813103]
[1764560604349,7.0844,127.04,127.01,3.39813103]
[1764560604658,10.2232,127.06,127.01,3.39813103]
[1764560604965,3.14,127.05,127.02,3.18282968]
[1764560605855,10.2232,127.06,127.02,3.18282968]
[1764560606256,7.0832,127.06,127.02,3.18282968]
[1764560607056,10.2218,127.09,127.02,3.18282968]
[1764560607361,7.0818,127.09,127.02,3.18282968]
[1764560607852,10.2218,127.09,127.02,3.18282968]
[1764560610167,3.14,127.07,127.02,3.18282968]
[1764560610362,3.14,127.07,127.03,3.19000217]
[1764560611161,10.221,127.1,127.03,3.19000217]
[1764560611463,3.14,127.13,127.05,3.18649462]
[1764560611667,3.14,127.12,127.08,3.18872908]
[1764560612557,3.14,127.11,127.08,0.05872908]
[1764560612963,3.14,127.1,127.08,0.05872908]
[1764560613161,3.14,127.1,127.08,0.05809821]
[1764560614365,10.221,127.1,127.08,0.05809821]
[1764560614565,3.14,127.09,127.08,0.05809821]
[1764560621568,3.14,127.08,127.02,7.0847]
[1764560622161,3.14,127.08,127.02,10.2147]
[1764560622476,3.14,127.08,127.03,3.13]
[1764560622668,0.05391108,127.06,127.05,3.13]
[1764560624274,3.19391108,127.06,127.04,0.05364317]
[1764560624459,0.05391108,127.06,127.04,3.18364317]
[1764560625671,0.05391108,127.06,127.04,10.26754317]
[1764560625974,0.05391108,127.06,127.05,3.13]
[1764560626165,0.00391108,127.06,127.05,3.13]
[1764560626366,7.08,127.12,127.07,3.13]
[1764560627073,10.22,127.12,127.08,3.13]
[1764560627274,10.22,127.12,127.09,3.19023457]
[1764560629769,10.1606,127.11,127.09,0.06023457]
[1764560629978,10.1606,127.11,127.09,0.05729013]
[1764560629979,3.08,127.1,127.09,0.05729013]
[1764560630976,3.08,127.14,127.09,3.36729013]
[1764560631273,3.08,127.11,127.1,0.05698952]
[1764560631473,7.08,127.12,127.09,3.36613475]
[1764560631770,10.16,127.12,127.09,3.36613475]
[1764560631981,3.08,127.11,127.09,0.05613475]
[1764560632774,3.08,127.1,127.09,0.05613475]
[1764560634378,3.08,127.12,127.09,3.36613475]
[1764560634673,3.08,127.12,127.09,3.36287641]
[1764560634875,3.08,127.12,127.09,0.05287641]
[1764560638273,3.08,127.1,127.09,0.05287641]
[1764560638473,3.08,127.1,127.08,0.05345702]
[1764560638678,3.08,127.1,127.08,3.36345702]
[1764560639278,4.08451008,127.15,127.08,3.36345702]
[1764560639478,3.08,127.14,127.08,3.36345702]
[1764560639674,3.08,127.14,127.1,3.36414844]
[1764560645380,10.1585,127.15,127.12,3.31]
[1764560645580,8.84104149,127.19,127.12,3.31]
[1764560645581,3.08,127.16,127.12,3.31]
[1764560645783,3.08,127.16,127.13,3.36021045]
[1764560646277,3.08,127.14,127.13,0.05021045]
[1764560646886,7.0771,127.17,127.13,3.36021045]
[1764560647188,3.08,127.16,127.13,3.36021045]
[1764560647484,3.08,127.16,127.13,0.05021045]
[1764560648790,10.1578,127.16,127.13,0.05021045]
[1764560648992,3.08,127.15,127.13,0.05021045]
[1764560649493,3.08,127.14,127.13,0.05021045]
[1764560670514,10.4273,127.17,127.13,3.38021045]
[1764560670711,3.35,127.16,127.14,2.61331079]
[1764560672416,3.35,127.15,127.14,2.61331079]
[1764560673317,3.35,127.14,127.13,2.66352124]
[1764560678516,3.35,127.14,127.13,0.05021045]
[1764560683331,10.4284,127.15,127.13,0.05021045]
[1764560683524,10.4284,127.15,127.14,2.61331079]
[1764560684832,7.0784,127.15,127.14,2.61331079]
[1764560685036,10.4284,127.15,127.14,2.61331079]
[1764560690443,3.35,127.15,127.14,2.61331079]
[1764560692040,3.19,127.16,127.14,3.28]